bitfinex/quotes_ETHUSD_20241018
["timestamp","ask_amount","ask_price","bid_price","bid_amount"]
[1729224042269,3.0,2612.2,2611.6,3.82898]
[1729224042270,0.78506167,2612.2,2611.8,3.82876]
[1729224045702,0.78506167,2612.2,2611.8,7.65746]
[1729224045870,0.78506167,2612.2,2611.8,3.8287]
[1729224046219,0.78506167,2612.2,2611.6,3.43782645]
[1729224046372,3.84953167,2612.4,2611.8,7.65735]
[1729224046706,3.84953167,2612.4,2611.9,3.82861]
[1729224046905,3.84953167,2612.4,2611.8,7.65736]
[1729224047209,3.84953167,2612.4,2611.9,3.8286]
[1729224049026,3.84953167,2612.4,2611.9,3.82855]
[1729224049624,11.18987785,2612.6,2612.1,3.82833]
[1729224049784,15.01749785,2612.6,2612.1,3.82833]
[1729224050120,11.18987785,2612.6,2612.2,3.82816]
[1729224050339,10.38867785,2612.6,2612.5,3.82775]
[1729224050823,10.38867785,2612.6,2612.5,4.47605]
[1729224050983,10.38867785,2612.6,2612.5,5.65022565]
[1729224052692,10.38867785,2612.6,2612.4,3.82788]
[1729224052895,10.38867785,2612.6,2612.4,3.82781]
[1729224053116,10.38867785,2612.6,2612.5,3.82775]
[1729224053629,10.38867785,2612.6,2612.4,3.82781]
[1729224056553,10.38867785,2612.6,2612.5,3.82775]
[1729224058731,10.38867785,2612.6,2612.4,3.82781]
[1729224059458,10.38867785,2612.6,2612.5,3.82775]
[1729224059970,10.38867785,2612.6,2612.5,4.60096115]
[1729224060525,10.38867785,2612.6,2612.5,0.77321115]
[1729224060725,10.38867785,2612.6,2612.4,3.82781]
[1729224060951,11.21217785,2612.6,2612.2,7.6562]
[1729224061152,0.7822,2612.4,2611.8,3.82863]
[1729224061336,3.8282,2612.2,2611.6,3.82897]
[1729224061667,0.02156167,2612.1,2611.6,0.52774947]
[1729224061826,0.02156167,2612.2,2611.7,7.65759]
[1729224062173,0.7545,2612.1,2611.7,3.82877]
[1729224062522,0.02156167,2612.0,2611.5,3.82917]
[1729224062732,0.7545,2611.9,2611.5,3.82917]
[1729224063317,0.02156167,2611.8,2611.5,3.82917]
[1729224063620,0.02156167,2611.8,2611.3,3.9578584]
[1729224064226,4.58314,2611.9,2611.5,3.82908]
[1729224064227,0.7545,2611.9,2611.5,3.82908]
[1729224064991,0.7545,2611.9,2611.3,3.9578684]
[1729224064992,0.02156167,2611.8,2611.3,3.9578684]
[1729224065912,3.85033167,2611.8,2611.3,7.7872984]
[1729224066074,0.02156167,2611.8,2611.3,3.9578684]
[1729224066275,0.02156167,2611.8,2611.3,7.7872784]
[1729224066481,0.02156167,2611.8,2611.3,3.9578484]
[1729224066823,0.8213,2611.6,2611.3,0.1284384]
[1729224066975,0.02156167,2611.5,2611.3,0.1284384]
[1729224067592,3.85078167,2611.5,2611.3,0.1284384]
[1729224067791,0.8213,2611.4,2611.3,0.1284384]
[1729224068281,7.65066,2611.4,2611.3,0.1284384]
[1729224068480,9.14458681,2611.4,2611.3,0.1284384]
[1729224068722,5.31522681,2611.4,2611.3,0.1284384]
[1729224068890,5.33678848,2611.4,2611.3,0.1284384]
[1729224069095,9.16614848,2611.4,2611.3,0.1284384]
[1729224069402,5.31522681,2611.4,2611.3,0.1284384]
[1729224069716,6.16614848,2611.4,2611.3,0.1284384]
[1729224069893,9.16614848,2611.4,2611.3,0.1284384]
[1729224070102,5.31522681,2611.4,2611.3,0.1284384]
[1729224070296,5.33678848,2611.4,2611.3,0.1284384]
[1729224070525,0.84286167,2611.4,2611.3,0.1284384]
[1729224071222,0.8213,2611.4,2611.3,0.1284384]
[1729224073634,0.8213,2611.4,2611.3,3.9579484]
[1729224073827,0.02156167,2611.6,2611.4,3.82927]
[1729224073828,0.7694,2611.6,2611.4,3.82927]
[1729224073985,0.79096167,2611.8,2611.5,3.82921]
[1729224075089,0.79096167,2611.8,2611.6,3.82903]
[1729224075280,0.79096167,2611.8,2611.5,3.82912]
[1729224075741,0.78116167,2612.1,2611.5,0.6483]
[1729224075888,0.78116167,2612.1,2611.8,3.82875]
[1729224076220,0.78116167,2612.1,2611.8,3.82869]
[1729224076785,0.7596,2612.1,2611.8,3.82869]
[1729224077029,10.38867785,2612.6,2612.0,4.47668]
[1729224077186,0.02156167,2612.5,2612.0,3.82838]
[1729224077533,0.02156167,2612.5,2611.8,0.6483]
[1729224077534,0.02156167,2612.5,2611.9,3.82863]
[1729224077687,0.02156167,2612.5,2612.1,3.82831]
[1729224078385,10.38867785,2612.6,2612.4,3.82789]
[1729224079030,0.02156167,2612.5,2612.1,3.82831]
[1729224079189,3.84932167,2612.5,2611.9,3.82852]
[1729224079582,0.02156167,2612.5,2612.1,3.8283]
[1729224079786,0.02156167,2612.5,2612.0,3.82844]
[1729224080025,0.02156167,2612.5,2612.0,7.65683]
[1729224080327,11.15667785,2612.6,2612.2,3.82811]
[1729224080528,11.15667785,2612.6,2612.3,3.82795]
[1729224081931,11.15667785,2612.6,2612.5,3.82775]
[1729224081932,10.38867785,2612.6,2612.5,3.82775]
[1729224082103,10.38867785,2612.6,2612.5,5.00192665]
[1729224083502,10.38867785,2612.6,2612.5,3.82775]
[1729224085013,10.38867785,2612.6,2612.4,3.82789]
[1729224086626,10.38867785,2612.6,2612.4,7.6557]
[1729224087131,10.38867785,2612.6,2612.5,3.82775]
[1729224087336,10.38867785,2612.6,2612.4,7.65561]
[1729224087505,10.38867785,2612.6,2612.4,7.6556]
[1729224087840,10.38867785,2612.6,2612.4,7.65559]
[1729224088039,10.38867785,2612.6,2612.4,7.6556]
[1729224088344,10.38867785,2612.6,2612.5,3.82775]
[1729224088638,10.38867785,2612.6,2612.4,3.82779]
[1729224088639,10.38867785,2612.6,2612.4,7.65559]
[1729224088844,10.38867785,2612.6,2612.4,3.82779]
[1729224089600,10.38867785,2612.6,2612.4,7.65559]
[1729224089811,10.38867785,2612.6,2612.5,3.82775]
[1729224090220,10.38867785,2612.6,2612.4,3.82779]
[1729224090742,10.38867785,2612.6,2612.5,3.82775]
[1729224092346,10.38867785,2612.6,2612.5,5.241604]
[1729224092706,10.38867785,2612.6,2612.5,8.75597609]
[1729224092961,10.38867785,2612.6,2612.5,8.67943045]
[1729224095449,10.38867785,2612.6,2612.5,8.68832037]
[1729224095609,10.38867785,2612.6,2612.5,11.68832037]
[1729224095811,0.69790296,2612.6,2612.5,13.03854509]
[1729224096037,0.69790296,2612.6,2612.5,14.20960312]
[1729224096769,0.02156167,2613.8,2613.6,3.82601]
[1729224096976,0.8116,2613.9,2613.5,7.65238]
[1729224097173,0.8116,2613.9,2613.5,3.82618]
[1729224097634,0.8116,2613.9,2613.5,7.65236]
[1729224097836,0.8116,2613.9,2613.5,3.82618]
[1729224098181,0.8116,2613.9,2613.7,3.82596]
[1729224098473,3.82507,2614.4,2613.7,3.82596]
[1729224098474,0.8286,2614.2,2613.7,7.65185]
[1729224098641,0.8286,2614.2,2613.8,3.82583]
[1729224099464,0.8286,2614.2,2613.7,7.6518]
[1729224099781,0.8286,2614.2,2613.8,3.82583]
[1729224100080,0.8286,2614.2,2613.8,3.51433354]
[1729224100265,4.59061,2614.5,2613.8,7.69150689]
[1729224100461,0.78726167,2614.5,2613.9,7.65134]
[1729224100645,0.78726167,2614.5,2614.0,0.07650235]
[1729224100646,0.7657,2614.5,2614.0,0.07650235]
[1729224100849,4.59056,2614.5,2613.9,3.82558]
[1729224101188,3.84654167,2614.4,2613.7,4.47419]
[1729224101338,3.84654167,2614.4,2613.7,3.82589]
[1729224101339,4.30776584,2614.4,2613.7,3.82589]
[1729224101540,4.30776584,2614.4,2613.3,0.6483]
[1729224101541,3.43782645,2614.0,2613.3,0.6483]
[1729224101785,3.82591,2613.8,2612.9,0.6483]
[1729224101947,3.84747167,2613.8,2613.1,3.82686]
[1729224102150,3.84747167,2613.8,2613.2,3.90321499]
[1729224102368,0.78056167,2613.9,2613.2,3.90321499]
[1729224102670,1.21961717,2613.9,2613.2,3.90313499]
[1729224102984,1.21961717,2613.9,2613.5,3.43782645]
[1729224102985,0.759,2613.9,2613.5,3.43782645]
[1729224103276,0.759,2613.9,2613.5,7.9888417]
[1729224103579,0.8198,2614.3,2613.7,3.8259]
[1729224104690,3.8198,2614.3,2613.7,3.8259]
[1729224104992,7.64493,2614.3,2613.7,3.8259]
[1729224105157,7.64493,2614.3,2613.6,3.82613]
[1729224105576,7.64493,2614.3,2613.4,3.82634]
[1729224105577,0.02156167,2614.2,2613.4,3.82634]
[1729224105759,3.82575,2613.9,2613.3,4.47487]
[1729224106455,7.65155,2613.9,2613.3,0.6483]
[1729224106662,0.7678,2613.8,2613.3,4.47486]
[1729224106864,3.82548,2614.1,2613.5,7.26405645]
[1729224106865,4.59328,2614.1,2613.5,7.26405645]
[1729224107047,8.41878,2614.1,2613.6,0.07651295]
[1729224107246,4.59328,2614.1,2613.6,0.07651295]
[1729224107930,3.82558,2614.0,2613.6,0.07651295]
[1729224108429,8.4188,2614.1,2613.6,0.07651295]
[1729224108730,3.8256,2614.0,2613.6,0.07651295]
[1729224111088,4.59328,2614.1,2613.6,0.07651295]
[1729224111308,7.65035,2614.3,2613.7,4.47419]
[1729224111514,3.82516,2614.3,2613.7,4.47419]
[1729224112026,4.59966,2614.4,2613.8,3.90225547]
[1729224112228,3.82514,2614.3,2613.8,0.07650547]
[1729224112538,7.26352645,2613.9,2612.9,4.47542]
[1729224112741,3.82669,2613.3,2612.9,0.6483]
[1729224112907,3.82717,2612.9,2612.7,0.6483]
[1729224113090,3.82717,2612.9,2612.4,0.6483]
[1729224113289,3.82717,2612.9,2612.4,1.82250165]
[1729224113492,3.82772,2612.6,2612.1,0.6483]
[1729224113729,3.82772,2612.6,2611.9,3.82854]
[1729224113900,3.82772,2612.6,2611.9,4.47684]
[1729224114590,3.82772,2612.6,2612.0,3.82839]
[1729224114795,3.82772,2612.6,2612.1,3.82833]
[1729224115094,3.82772,2612.6,2611.9,4.47684]
[1729224115297,3.82772,2612.6,2612.0,0.79235564]
[1729224115603,3.82772,2612.6,2612.1,3.8283]
[1729224116231,3.763,2613.2,2612.7,3.82745]
[1729224116442,4.58982,2613.2,2612.5,3.82765]
[1729224116596,0.763,2613.2,2612.7,3.82742]
[1729224116932,0.763,2613.2,2612.8,0.07653749]
[1729224117141,0.763,2613.2,2612.7,3.82734]
[1729224117302,0.763,2613.2,2612.8,0.0765375]
[1729224117833,4.58977,2613.2,2612.8,0.0765375]
[1729224117989,4.58977,2613.2,2612.7,3.82734]
[1729224117990,3.8269,2613.1,2612.6,3.82758]
[1729224118394,3.8269,2613.1,2612.5,4.55428765]
[1729224118595,3.8269,2613.1,2612.6,3.82758]
[1729224119092,3.82655,2613.4,2612.8,4.47553]
[1729224119334,4.62138,2613.5,2612.9,3.82708]
[1729224119630,4.64294167,2613.5,2612.9,3.82708]
[1729224119833,4.64294167,2613.5,2612.9,7.65415]
[1729224120136,4.64294167,2613.5,2612.9,3.82707]
[1729224120343,8.46931167,2613.5,2612.9,3.82707]
[1729224120511,3.82644,2613.4,2612.9,3.82707]
[1729224120712,4.62137,2613.5,2612.9,3.82707]
[1729224121738,8.44774,2613.5,2612.9,3.82707]
[1729224122064,3.8266,2613.3,2612.8,0.6483]
[1729224122340,4.62137,2613.5,2612.2,5.42856944]
[1729224122341,3.82688,2613.1,2612.5,0.6483]
[1729224122495,3.82688,2613.1,2612.2,4.24514995]
[1729224122496,0.8242,2613.0,2612.4,3.82781]
[1729224122942,0.8242,2613.0,2612.4,3.82786]
[1729224122943,3.82716,2612.9,2612.4,3.82786]
[1729224123142,3.82716,2612.9,2612.3,3.82791]
[1729224123378,7.65445,2612.9,2612.3,4.35537436]
[1729224123785,3.84872167,2612.9,2612.3,4.35537436]
[1729224124078,0.8242,2613.0,2612.1,3.82824]
[1729224124079,3.82755,2612.7,2612.1,3.82819]
[1729224124283,0.8059,2612.6,2612.0,0.6483]
[1729224124577,4.63358,2612.6,2612.1,3.8283]
[1729224124781,0.8059,2612.6,2612.1,3.8283]
[1729224124943,0.8059,2612.6,2612.2,3.82818]
[1729224125362,0.8059,2612.6,2612.1,3.8283]
[1729224126182,0.8059,2612.6,2612.1,3.82824]
[1729224126692,0.8059,2612.6,2612.1,7.65648]
[1729224127099,4.65514167,2612.6,2612.1,3.82824]
[1729224127394,0.8059,2612.6,2612.1,3.82824]
[1729224128094,3.82775,2612.5,2612.0,3.90499705]
[1729224128997,0.8059,2612.6,2612.1,3.82825]
[1729224129197,0.8,2613.0,2612.3,4.4763]
[1729224129360,3.84873167,2612.9,2612.4,3.82781]
[1729224129993,3.84873167,2612.9,2612.3,4.4763]
[1729224130201,3.84873167,2612.9,2612.3,4.47626]
[1729224130357,0.86912984,2612.9,2612.3,0.72485117]
[1729224130563,3.82753,2612.7,2612.1,8.30479]
[1729224130763,3.82753,2612.7,2612.2,3.82815]
[1729224130997,0.8146,2612.6,2612.2,3.82815]
[1729224131867,4.66384167,2612.6,2612.1,3.82824]
[1729224132172,5.51297884,2612.6,2612.1,3.82824]
[1729224132890,5.49141717,2612.6,2612.1,3.82824]
[1729224133296,5.51297884,2612.6,2612.1,3.82824]
[1729224133798,5.49141717,2612.6,2612.1,3.82824]
[1729224134003,1.66373717,2612.6,2612.1,3.82824]
[1729224134188,0.8146,2612.6,2612.1,3.82824]
[1729224134394,0.8146,2612.6,2612.2,3.82811]
[1729224134769,4.67480817,2612.9,2612.3,0.07655632]
[1729224134977,3.84897167,2612.8,2612.3,3.82795]
[1729224135179,4.31645249,2612.8,2612.3,3.82795]
[1729224136294,5.48740817,2612.9,2612.3,3.82795]
[1729224136883,4.59895,2613.1,2612.6,3.82751]
[1729224137416,0.772,2613.1,2612.6,3.82751]
[1729224137694,0.772,2613.1,2612.8,3.82718]
[1729224137872,0.772,2613.4,2612.7,7.26526645]
[1729224138007,3.82674,2613.2,2612.7,3.82744]
[1729224138202,3.82674,2613.2,2612.5,7.65527]
[1729224138203,4.59896,2613.1,2612.5,7.65527]
[1729224138548,8.42591,2613.1,2612.5,3.82762]
[1729224138719,4.59895,2613.1,2612.5,7.65528]
[1729224139200,4.59895,2613.1,2612.6,3.82752]
[1729224139397,0.772,2613.1,2612.7,3.90397118]
[1729224139799,0.772,2613.1,2612.7,3.90391118]
[1729224140001,6.82632,2613.5,2612.8,0.39039112]
[1729224140002,4.61263,2613.4,2612.8,0.39039112]
[1729224140337,4.61263,2613.4,2612.9,3.90359558]
[1729224140903,4.61263,2613.4,2612.9,3.82706]
[1729224140904,4.63419167,2613.4,2612.9,3.82706]
[1729224141449,4.61263,2613.4,2612.9,3.82706]
[1729224141836,4.61263,2613.4,2613.0,3.82694]
[1729224141837,0.7862,2613.4,2613.0,3.82694]
[1729224142418,0.7862,2613.4,2612.9,3.82706]
[1729224142610,0.7862,2613.4,2612.9,7.65412]
[1729224142811,0.7862,2613.4,2613.0,3.82691]
[1729224143041,0.7862,2613.4,2613.1,3.82686]
[1729224143239,0.7862,2613.4,2613.1,7.65372]
[1729224143556,0.7862,2613.4,2613.1,3.82686]
[1729224143752,0.7862,2613.4,2613.0,3.82697]
[1729224144920,0.7862,2613.4,2612.9,4.209796]
[1729224144921,0.7862,2613.4,2613.1,3.82685]
[1729224145617,0.7862,2613.4,2613.0,3.82701]
[1729224146855,0.74984402,2613.4,2613.0,3.82701]
[1729224147356,4.57629402,2613.4,2612.9,3.82709]
[1729224147513,5.35764126,2613.4,2612.9,3.82709]
[1729224147710,5.33607959,2613.4,2612.9,7.65417]
[1729224147912,3.84814167,2613.3,2612.7,3.82735]
[1729224148156,3.84814167,2613.3,2612.7,7.65472]
[1729224149257,0.02156167,2613.3,2612.8,3.82722]
[1729224149463,3.82659,2613.3,2612.8,3.82722]
[1729224149626,3.82659,2613.3,2612.7,3.82735]
[1729224149828,5.06441863,2613.3,2612.7,3.82735]
[1729224150048,5.04285696,2613.3,2612.7,3.82735]
[1729224150424,5.04285696,2613.3,2612.8,3.8273]
[1729224150826,5.33607959,2613.4,2612.9,3.90359549]
[1729224151055,9.16259959,2613.4,2612.9,3.90359549]
[1729224152161,3.82658,2613.3,2612.9,3.90359549]
[1729224152347,3.82658,2613.3,2612.9,0.07653549]
[1729224152552,3.82658,2613.3,2612.8,3.90382552]
[1729224153128,3.43782645,2613.9,2613.4,3.82634]
[1729224153129,3.82577,2613.9,2613.4,3.82634]
[1729224153329,3.82577,2613.9,2613.3,0.6846]
[1729224153543,0.7615,2613.8,2613.4,3.82641]
[1729224154038,0.7615,2614.0,2613.7,3.82599]
[1729224154364,0.7615,2614.3,2613.8,0.76111216]
[1729224154534,0.7615,2614.3,2614.0,3.82544]
[1729224155660,0.7615,2614.3,2614.1,3.8254]
[1729224156030,0.7615,2614.6,2614.1,7.65071]
[1729224156333,0.7615,2614.6,2614.1,3.82531]
[1729224157433,0.02156167,2614.5,2613.9,7.65125]
[1729224157644,0.02156167,2614.5,2614.0,3.82551]
[1729224158474,5.42938417,2614.6,2614.1,3.82532]
[1729224158884,0.02156167,2614.5,2614.1,3.82532]
[1729224159037,0.02156167,2614.5,2614.0,3.82555]
[1729224159238,0.7615,2614.6,2614.1,4.58642111]
[1729224159576,0.7615,2614.6,2614.1,3.82532]
[1729224159874,4.58618,2614.6,2614.1,3.82532]
[1729224160248,4.60774167,2614.6,2614.1,3.82532]
[1729224161269,0.78306167,2614.6,2614.1,3.82532]
[1729224161465,1.24382084,2614.6,2614.1,3.82532]
[1729224162477,5.06851084,2614.6,2614.1,3.82532]
[1729224162711,1.24382084,2614.6,2614.1,3.82532]
[1729224162887,1.22225917,2614.6,2613.8,3.82578]
[1729224163040,0.7615,2614.6,2614.2,3.82519]
[1729224169977,0.7615,2614.6,2614.3,3.8251]
[1729224170162,0.8299,2614.8,2614.3,3.5143249]
[1729224170364,0.8299,2614.8,2614.5,3.82474]
[1729224172208,0.8299,2614.8,2614.6,3.82458]
[1729224172370,0.8299,2614.8,2614.5,0.07648853]
[1729224172568,0.8299,2614.8,2614.5,3.90130853]
[1729224173105,0.8299,2614.8,2614.6,3.82462]
[1729224174305,0.8299,2614.8,2614.6,4.6392021]
[1729224174670,0.829,2615.0,2614.6,0.8145821]
[1729224174990,0.829,2615.0,2614.7,3.82452]
[1729224177894,0.59910884,2615.1,2614.7,7.26234645]
[1729224178171,0.8033,2615.2,2614.9,3.82422]
[1729224178887,0.8033,2615.2,2614.8,3.82431]
[1729224179211,0.8033,2615.2,2614.9,3.82422]
[1729224179600,0.8033,2615.2,2614.9,4.93279265]
[1729224180285,0.8033,2615.2,2614.7,3.82443]
[1729224180487,3.82405,2615.1,2614.6,0.8145821]
[1729224180712,0.8324,2614.7,2614.1,3.82533]
[1729224181381,4.65704,2614.7,2614.1,3.82533]
[1729224181607,4.65701,2614.7,2614.1,3.82533]
[1729224181819,3.82484,2614.5,2614.0,3.82545]
[1729224181984,4.59584,2614.5,2614.0,3.82545]
[1729224182318,0.771,2614.5,2614.1,4.590488]
[1729224182475,4.59584,2614.5,2614.1,0.765108]
[1729224183419,4.59584,2614.5,2614.0,3.82544]
[1729224183605,3.84654167,2614.4,2613.8,3.82573]
[1729224183920,0.771,2614.2,2613.7,3.82598]
[1729224184221,0.771,2614.2,2613.8,3.82584]
[1729224184887,0.771,2614.2,2613.9,3.82562]
[1729224185080,0.771,2614.2,2614.0,0.765133]
[1729224185318,0.7936,2614.4,2614.0,4.590613]
[1729224185817,0.7936,2614.4,2614.0,4.590603]
[1729224187214,0.7936,2614.4,2614.1,3.90180187]
[1729224187387,0.7936,2614.4,2614.2,3.82523]
[1729224187742,0.7936,2614.4,2614.2,4.67446349]
[1729224188694,0.7936,2614.4,2614.1,0.07650187]
[1729224188901,3.82549,2614.1,2613.4,4.5109]
[1729224189122,3.84698167,2614.1,2613.4,4.5109]
[1729224189301,3.84698167,2614.1,2613.0,4.63541358]
[1729224189302,0.8045,2613.9,2613.2,3.82664]
[1729224189634,0.8045,2613.6,2613.2,0.765364]
[1729224189922,4.65223167,2613.6,2613.2,0.765364]
[1729224190125,0.82606167,2613.6,2613.0,7.65385]
[1729224190514,0.8045,2613.6,2613.1,3.82675]
[1729224191321,0.8045,2613.6,2613.0,3.82691]
[1729224191529,0.8045,2613.6,2613.0,7.65383]
[1729224192518,0.8045,2613.6,2613.1,3.82676]
[1729224192686,0.8045,2613.6,2613.2,0.84189327]
[1729224193116,0.8045,2613.6,2613.2,0.765367]
[1729224193321,4.63072,2613.6,2613.1,3.82676]
[1729224193489,4.65228167,2613.6,2613.1,3.82676]
[1729224193692,4.65228167,2613.6,2612.9,8.33871]
[1729224194015,3.8263,2613.5,2612.9,4.51164]
[1729224194214,3.8263,2613.5,2612.9,3.82704]
[1729224194611,7.6527,2613.5,2613.0,0.51484476]
[1729224194921,3.8263,2613.5,2613.0,0.51484476]
[1729224195550,3.8263,2613.5,2613.0,4.34181476]
[1729224196207,3.8263,2613.5,2613.0,0.51484476]
[1729224196406,3.82652,2613.4,2613.0,0.51484476]
[1729224196631,3.84808167,2613.4,2613.0,0.51484476]
[1729224196834,3.82652,2613.4,2613.0,0.51484476]
[1729224197346,3.8263,2613.5,2613.0,0.51484476]
[1729224197347,3.84786167,2613.5,2613.0,0.51484476]
[1729224197842,3.84786167,2613.5,2613.0,4.34183476]
[1729224198211,0.02156167,2613.5,2613.0,0.51484476]
[1729224198412,4.63069,2613.6,2613.1,7.73019357]
[1729224198831,4.63069,2613.6,2613.1,7.73015357]
[1729224199043,0.8045,2613.6,2613.1,3.90331357]
[1729224199240,0.8045,2613.6,2613.1,7.73009357]
[1729224199405,0.8045,2613.6,2613.1,3.90331357]
[1729224199606,0.8045,2613.6,2613.2,0.44181583]
[1729224200544,0.8045,2613.6,2613.2,4.26853583]
[1729224200745,0.8045,2613.6,2613.2,0.44181583]
[1729224201048,0.8045,2613.6,2613.2,0.51834086]
[1729224201633,3.82578,2613.9,2613.6,3.826]
[1729224201634,0.7595,2613.9,2613.6,3.826]
[1729224201875,0.7595,2613.9,2613.7,0.3826]
[1729224202223,0.7629,2614.1,2613.7,4.20858]
[1729224202456,0.7629,2614.1,2613.7,0.3826]
[1729224202658,0.7629,2614.1,2613.7,4.28504335]
[1729224202857,0.7629,2614.1,2613.7,0.3826]
[1729224203163,4.58831,2614.1,2613.7,0.3826]
[1729224203319,0.7629,2614.1,2613.7,0.45911142]
[1729224203857,0.7629,2614.1,2613.7,4.28509142]
[1729224204171,0.94800124,2614.8,2613.9,3.8257]
[1729224204324,0.02156167,2614.7,2613.9,3.8257]
[1729224204531,3.82484,2614.5,2613.9,3.8257]
[1729224204827,0.8235,2614.5,2613.9,3.82559]
[1729224205046,0.8235,2614.5,2614.0,4.35765991]
[1729224206857,0.82196934,2614.5,2614.1,3.82538]
[1729224207351,0.82196934,2614.5,2614.0,0.53212991]
[1729224207352,4.64678934,2614.5,2614.0,0.53212991]
[1729224208650,0.82196934,2614.5,2614.0,4.35759991]
[1729224208971,0.82196934,2614.5,2614.1,0.81831899]
[1729224209523,0.82196934,2614.5,2614.1,4.64368899]
[1729224209932,0.82196934,2614.5,2614.2,0.0764972]
[1729224210622,0.82196934,2614.5,2614.2,3.9017172]
[1729224210822,3.82447,2614.8,2614.3,3.82507]
[1729224211026,3.84570167,2615.0,2614.4,4.207387]
[1729224211269,3.84570167,2615.0,2614.4,4.28387923]
[1729224211426,7.26236645,2614.7,2614.4,0.07649223]
[1729224211629,7.26236645,2614.7,2613.8,0.79994374]
[1729224211630,3.82523,2614.3,2613.8,3.82584]
[1729224211873,3.82523,2614.3,2613.7,0.3826]
[1729224211874,3.84685167,2614.2,2613.7,0.3826]
[1729224212040,3.82542,2614.1,2613.7,0.3826]
[1729224212231,3.82555,2614.0,2613.7,0.3826]
[1729224212434,3.82555,2614.0,2613.4,3.82633]
[1729224212828,3.82542,2614.1,2613.4,3.82633]
[1729224212829,3.82542,2614.1,2613.5,3.82621]
[1729224212987,7.65091,2614.1,2613.5,3.82621]
[1729224213150,3.82542,2614.1,2613.5,3.82621]
[1729224213349,7.6509,2614.1,2613.5,3.8262]
[1729224213553,3.82602,2613.7,2613.3,0.05741938]
[1729224213800,3.82614,2613.6,2613.1,3.82678]
[1729224214091,0.02156167,2613.8,2613.2,3.82672]
[1729224214253,3.82509,2614.4,2613.8,3.82572]
[1729224214454,3.82509,2614.4,2613.8,7.65148]
[1729224214657,3.82509,2614.4,2613.9,3.82569]
[1729224215084,3.82509,2614.4,2613.8,3.82572]
[1729224215379,3.82509,2614.4,2613.9,3.82566]
[1729224215883,3.82509,2614.4,2613.8,4.208292]
[1729224215884,0.02156167,2614.3,2613.8,4.208292]
[1729224216238,3.82506,2614.4,2613.8,4.208292]
[1729224216441,3.82506,2614.4,2613.9,3.82565]
[1729224216649,3.82506,2614.4,2613.8,4.208292]
[1729224217569,3.82506,2614.4,2613.8,8.034052]
[1729224217995,3.82506,2614.4,2613.8,4.208292]
[1729224218195,3.82506,2614.4,2613.8,8.034012]
[1729224218354,3.84662167,2614.4,2613.8,8.034012]
[1729224219406,0.7643,2614.3,2613.8,8.034012]
[1729224219999,0.7643,2614.3,2613.9,0.8034012]
[1729224220424,0.7643,2614.3,2613.9,4.6290912]
[1729224220714,0.7643,2614.3,2613.9,0.8034012]
[1729224220883,0.7643,2614.3,2613.9,3.82569]
[1729224226198,0.02156167,2614.5,2613.9,3.82569]
[1729224226199,0.8202,2614.5,2613.9,3.82557]
[1729224226414,0.8202,2614.5,2614.0,0.07649735]
[1729224226717,0.8202,2614.5,2613.9,3.82557]
[1729224226718,4.64512,2614.5,2613.9,3.82562]
[1729224226912,4.64512,2614.5,2614.0,0.382562]
[1729224227212,3.82498,2614.4,2614.0,0.382562]
[1729224228011,3.82498,2614.4,2614.0,0.45906405]
[1729224228199,0.8202,2614.5,2614.0,4.28448405]
[1729224228401,4.64504,2614.5,2614.1,0.42844841]
[1729224230791,3.84662167,2614.4,2613.8,3.82575]
[1729224230992,0.7899,2614.3,2613.6,7.26385645]
[1729224231273,3.84691167,2614.2,2613.6,3.82603]
[1729224231519,3.8255,2614.1,2613.7,0.451223]
[1729224231732,0.7899,2614.0,2613.7,0.451223]
[1729224232329,0.7899,2614.0,2613.7,7.79144091]
[1729224232534,0.7899,2614.0,2613.7,7.71492945]
[1729224236034,0.7713,2614.2,2613.8,0.07651146]
[1729224236233,3.8247,2614.6,2614.1,3.8254]
[1729224236234,0.7713,2614.6,2614.1,3.8254]
[1729224236534,0.7713,2614.6,2614.1,7.65073]
[1729224236704,0.7713,2614.6,2614.2,3.82524]
[1729224237237,0.7713,2614.6,2614.1,3.82532]
[1729224237409,0.7713,2614.6,2614.1,4.93419565]
[1729224237739,0.7713,2614.6,2614.1,8.75951565]
[1729224238229,4.59599,2614.6,2614.1,4.93418565]
[1729224239540,4.59599,2614.6,2614.1,3.82531]
[1729224239743,4.59599,2614.6,2614.1,7.65063]
[1729224239913,4.59599,2614.6,2614.1,7.65064]
[1729224240235,4.59599,2614.6,2614.1,7.65062]
[1729224240539,4.59599,2614.6,2614.1,3.82531]
[1729224240739,4.59599,2614.6,2614.1,4.590402]
[1729224240925,3.84639167,2614.5,2614.1,3.82531]
[1729224241129,3.84639167,2614.5,2613.9,3.82561]
[1729224241292,0.8211,2614.3,2613.9,3.82561]
[1729224242152,0.8211,2614.3,2613.9,7.65123]
[1729224242449,0.8211,2614.3,2614.0,0.80477861]
[1729224243398,0.8211,2614.3,2613.8,1.19649983]
[1729224243747,0.8329,2614.0,2613.5,0.79994374]
[1729224243911,0.8329,2613.9,2613.4,0.79994374]
[1729224244240,0.8329,2613.7,2613.2,4.62657374]
[1729224244546,0.8329,2613.7,2613.3,0.715266]
[1729224244729,0.8329,2613.7,2613.3,1.51520974]
[1729224244900,0.8329,2613.7,2613.3,5.34177974]
[1729224245246,0.8329,2613.7,2613.3,1.51520974]
[1729224246642,0.8329,2613.7,2613.3,5.34177974]
[1729224247215,0.8329,2613.7,2613.3,1.51520974]
[1729224247417,0.8329,2613.7,2613.3,5.41830247]
[1729224247612,4.65891,2613.7,2613.3,1.51520974]
[1729224247813,3.82636,2613.5,2613.2,0.79994374]
[1729224248014,3.82636,2613.5,2613.1,0.79994374]
[1729224248015,0.7531,2613.4,2613.1,0.79994374]
[1729224248236,0.7531,2613.4,2613.1,0.87528375]
[1729224248744,0.7531,2613.4,2613.0,0.79994374]
[1729224249440,4.57955,2613.4,2613.0,0.07653111]
[1729224251837,4.57955,2613.4,2612.9,4.7036147]
[1729224252023,4.57955,2613.4,2612.9,0.07653096]